bitfinex/quotes_SOLUSD_20250318
["timestamp","ask_amount","ask_price","bid_price","bid_amount"]
[1742282089000,7.78648471,124.89,124.86,0.063]
[1742282089323,28.17594482,124.89,124.86,0.063]
[1742282089908,7.78648471,124.89,124.86,0.063]
[1742282090414,20.53162168,124.87,124.86,0.063]
[1742282090613,28.23594482,124.87,124.86,0.063]
[1742282092102,36.24424482,124.87,124.86,0.063]
[1742282093102,47.78592496,124.87,124.86,0.063]
[1742282093800,66.43557382,124.87,124.86,0.063]
[1742282094212,47.78592496,124.87,124.86,0.063]
[1742282095396,40.36592496,124.87,124.86,0.063]
[1742282095601,47.76592496,124.87,124.86,0.063]
[1742282096219,39.75762496,124.87,124.86,0.063]
[1742282096923,47.76592496,124.87,124.86,0.063]
[1742282100027,39.75762496,124.87,124.86,0.063]
[1742282100405,32.35762496,124.87,124.86,0.063]
[1742282100726,40.36592496,124.87,124.86,0.063]
[1742282101722,8.43478471,124.87,124.86,0.063]
[1742282101924,40.36592496,124.87,124.86,0.063]
[1742282104110,8.43478471,124.87,124.86,0.063]
[1742282104425,32.35762496,124.87,124.86,0.063]
[1742282104600,0.42648471,124.87,124.86,0.063]
[1742282104805,20.0,124.89,124.86,0.063]
[1742282105000,27.36,124.89,124.86,0.063]
[1742282105425,67.29824025,124.89,124.86,0.063]
[1742282106417,20.0,124.89,124.86,0.063]
[1742282106625,32.13630182,124.9,124.86,0.063]
[1742282106823,47.36064025,124.9,124.86,0.063]
[1742282108236,7.423,124.9,124.86,0.063]
[1742282108424,39.35414025,124.9,124.86,0.063]
[1742282109043,47.36074025,124.9,124.86,0.063]
[1742282109224,31.93114025,124.89,124.86,0.063]
[1742282109832,0.28432314,124.89,124.88,20.0]
[1742282110012,38.24212901,125.02,124.93,18.64964886]
[1742282110332,0.063,125.03,124.96,50.58078911]
[1742282110543,0.063,125.03,124.96,188.68078911]
[1742282110744,0.063,125.03,124.96,207.11462409]
[1742282111035,0.48948471,125.03,124.96,207.11462409]
[1742282111939,32.42062496,125.03,124.96,196.68328911]
[1742282112117,32.13630182,125.03,124.96,196.68328911]
[1742282112319,0.063,125.03,124.96,196.68328911]
[1742282112926,0.063,125.03,124.97,18.64964886]
[1742282115252,0.063,125.0,124.99,178.03174025]
[1742282116256,0.0001,125.0,124.99,202.98378911]
[1742282116751,0.0001,125.03,125.0,157.17603357]
[1742282117056,0.0001,125.03,125.02,31.93114025]
[1742282117434,0.0001,125.03,125.02,203.5370805]
[1742282117933,0.0001,125.03,125.02,222.61321407]
[1742282119432,0.0001,125.03,125.02,534.61321407]
[1742282120223,0.0001,125.1,125.02,534.61321407]
[1742282120430,0.0001,125.1,125.05,31.93114025]
[1742282120650,0.0001,125.1,125.05,170.03104025]
[1742282121357,0.0001,125.1,125.06,31.93114025]
[1742282121937,0.0001,125.1,125.07,31.93114025]
[1742282123135,0.0001,125.1,125.08,31.93114025]
[1742282123444,0.0001,125.1,125.08,170.03104025]
[1742282124734,0.0001,125.1,125.09,31.93114025]
[1742282125049,0.0001,125.1,125.08,170.03104025]
[1742282125847,0.0001,125.1,125.09,31.93114025]
[1742282126045,0.0001,125.1,125.08,170.03104025]
[1742282126747,0.0001,125.1,125.08,138.0999]
[1742282129251,31.93124025,125.1,125.08,138.0999]
[1742282129442,0.0001,125.1,125.08,138.0999]
[1742282130151,31.93124025,125.1,125.08,138.0999]
[1742282130357,0.0001,125.1,125.08,138.0999]
[1742282130757,39.92484025,125.1,125.08,138.0999]
[1742282131156,31.93114025,125.09,125.08,138.0999]
[1742282132154,39.92484025,125.1,125.08,138.0999]
[1742282132551,31.93114025,125.09,125.04,138.0999]
[1742282132857,39.92554025,125.09,125.04,138.0999]
[1742282133050,7.9944,125.09,125.04,138.0999]
[1742282133228,7.9944,125.09,125.05,31.93114025]
[1742282133434,7.9939,125.1,125.05,31.93114025]
[1742282134059,39.92504025,125.1,125.05,31.93114025]
[1742282134463,0.0001,125.1,125.08,31.93114025]
[1742282134761,0.0001,125.1,125.09,31.93114025]
[1742282135058,0.0001,125.1,125.08,170.03104025]
[1742282135958,0.0001,125.1,125.08,138.0999]
[1742282138458,0.0001,125.1,125.08,31.93114025]
[1742282138757,0.0001,125.1,125.09,50.58078911]
[1742282140199,0.0001,125.1,125.07,18.64964886]
[1742282140246,0.0001,125.1,125.09,31.93114025]
[1742282140563,0.0001,125.1,125.08,31.93114025]
[1742282140945,0.0001,125.1,125.09,31.93114025]
[1742282141441,0.0001,125.1,125.09,138.0999]
[1742282142271,0.0001,125.1,125.09,170.03104025]
[1742282146153,0.0001,125.1,125.09,188.68068911]
[1742282146551,0.0001,125.1,125.09,195.98068911]
[1742282148472,0.03,125.11,125.1,18.64964886]
[1742282148769,0.03,125.11,125.1,50.58078911]
[1742282149674,0.03,125.11,125.1,18.64964886]
[1742282149867,0.03,125.11,125.1,50.58078911]
[1742282150773,0.03,125.11,125.1,188.68068911]
[1742282151551,0.03,125.11,125.1,170.03104025]
[1742282151751,0.03,125.13,125.1,138.0999]
[1742282151953,31.96114025,125.13,125.1,138.0999]
[1742282152172,0.03,125.13,125.1,138.0999]
[1742282152676,0.03,125.13,125.1,170.03104025]
[1742282155179,0.03,125.13,125.1,138.0999]
[1742282157082,0.03,125.13,125.1,170.03104025]
[1742282157460,0.03,125.13,125.1,138.0999]
[1742282157660,0.03,125.13,125.1,170.03104025]
[1742282159553,0.03,125.13,125.11,31.93114025]
[1742282160151,0.03,125.13,125.1,170.03104025]
[1742282160357,0.03,125.13,125.11,31.93114025]
[1742282160558,0.03,125.13,125.1,138.0999]
[1742282161079,0.03,125.13,125.1,158.43490341]
[1742282161669,0.03,125.13,125.11,20.33500341]
[1742282161869,0.03,125.13,125.1,158.43490341]
[1742282162790,0.03,125.13,125.1,138.0999]
[1742282163384,0.0001,125.13,125.12,38.98465227]
[1742282163575,0.0001,125.13,125.12,46.24465227]
[1742282165191,0.0001,125.13,125.12,57.65955222]
[1742282166190,0.0001,125.13,125.12,202.47503693]
[1742282166759,0.063,125.16,125.13,19.07613357]
[1742282167075,0.063,125.16,125.15,31.74990336]
[1742282168794,0.063,125.16,125.14,18.64964886]
[1742282169384,0.063,125.16,125.13,138.0999]
[1742282169778,0.063,125.16,125.13,169.84980336]
[1742282169976,0.063,125.16,125.13,138.0999]
[1742282170563,31.81290336,125.16,125.12,138.0999]
[1742282172076,31.74990336,125.15,125.12,138.0999]
[1742282173176,31.74990336,125.14,125.12,138.0999]
[1742282173674,31.74990336,125.13,125.1,138.1299]
[1742282173881,1.5378,125.12,125.1,0.03]
[1742282174569,0.063,125.16,125.12,139.84496157]
[1742282174765,0.063,125.16,125.15,50.39955222]
[1742282174967,0.063,125.16,125.15,188.49945222]
[1742282175208,0.063,125.16,125.15,156.74954886]
[1742282175379,0.063,125.16,125.15,138.0999]
[1742282175887,0.063,125.16,125.12,50.39955222]
[1742282176113,0.063,125.16,125.12,188.49945222]
[1742282176802,31.81290336,125.16,125.12,156.74954886]
[1742282177176,0.063,125.16,125.12,156.74954886]
[1742282178388,0.063,125.16,125.12,188.49945222]
[1742282178589,0.063,125.16,125.12,156.74954886]
[1742282179515,7.9953,125.15,125.1,138.1299]
[1742282179676,31.74990336,125.12,125.1,0.03]
[1742282180693,31.74990336,125.11,125.1,0.03]
[1742282181422,33.35650336,125.11,125.1,0.03]
[1742282181592,7.00878471,125.1,125.09,0.03]
[1742282181784,77.74859143,125.1,125.03,138.13]
[1742282181985,31.74990336,125.06,125.03,138.13]
[1742282182212,38.98990336,125.06,125.03,138.13]
[1742282182428,33.35650336,125.04,125.03,0.03]
[1742282185292,1.6066,125.04,125.03,0.03]
[1742282185504,33.35650336,125.04,125.03,0.03]
[1742282186722,1.6066,125.04,125.03,0.03]
[1742282187506,33.35650336,125.04,125.03,0.03]
[1742282191141,47.99588807,125.04,125.03,0.03]
[1742282191453,31.74990336,125.0,124.99,0.03]
[1742282191627,39.15206493,125.0,124.99,0.03]
[1742282191820,40.75946493,125.0,124.99,0.03]
[1742282192943,41.04378807,125.0,124.99,0.03]
[1742282193136,49.04378807,125.0,124.99,0.03]
[1742282193727,49.04378807,125.0,124.97,0.03]
[1742282193930,31.89206493,124.98,124.97,0.03]
[1742282195715,32.17638807,124.98,124.97,0.03]
[1742282195917,40.17758807,124.98,124.97,0.03]
[1742282196728,0.28432314,124.97,124.96,0.03]
[1742282197059,50.82603693,124.97,124.96,0.03]
[1742282197227,31.74990336,124.92,124.9,0.03]
[1742282197435,39.00990336,124.92,124.9,0.03]
[1742282197740,7.26,124.92,124.9,0.03]
[1742282198765,31.89206493,124.91,124.9,0.03]
[1742282199663,31.89206493,124.91,124.86,8.0719]
[1742282199849,31.74990336,124.89,124.86,8.0719]
[1742282201659,39.00990336,124.88,124.86,8.0719]
[1742282201949,31.74990336,124.87,124.86,0.063]
[1742282202357,31.74990336,124.87,124.85,61.79212788]
[1742282202358,0.14216157,124.86,124.85,61.79212788]
[1742282202562,38.02456493,124.86,124.85,61.79212788]
[1742282203170,57.36018771,124.86,124.85,61.79212788]
[1742282203535,65.36908771,124.86,124.85,61.79212788]
[1742282203851,57.21802614,124.86,124.85,61.79212788]
[1742282204049,64.47802614,124.86,124.85,61.79212788]
[1742282204246,72.91341085,124.86,124.85,61.79212788]
[1742282204450,64.90451085,124.86,124.85,61.79212788]
[1742282205272,64.62018771,124.86,124.85,61.79212788]
[1742282206950,58.34552614,124.86,124.85,61.79212788]
[1742282208063,58.48768771,124.86,124.85,61.79212788]
[1742282208576,66.49658771,124.86,124.85,61.79212788]
[1742282208867,58.34552614,124.86,124.85,61.79212788]
[1742282209665,58.48768771,124.86,124.85,61.79212788]
[1742282210136,66.49658771,124.86,124.85,61.79212788]
[1742282210663,66.78091085,124.86,124.85,61.79212788]
[1742282211355,58.48768771,124.86,124.85,61.79212788]
[1742282212660,7.40216157,124.86,124.85,61.79212788]
[1742282212877,58.48768771,124.86,124.85,61.79212788]
[1742282213065,58.34552614,124.86,124.85,61.79212788]
[1742282213273,7.26,124.86,124.85,61.79212788]
[1742282213463,7.26,124.86,124.85,69.80172788]
[1742282214361,58.34552614,124.86,124.85,69.80172788]
[1742282214666,51.08552614,124.86,124.85,61.79212788]
[1742282215171,51.08552614,124.86,124.85,69.80172788]
[1742282215373,58.34552614,124.87,124.85,69.80172788]
[1742282215573,58.34552614,124.87,124.85,61.79212788]
[1742282216070,58.34552614,124.87,124.85,69.80172788]
[1742282216378,51.08552614,124.87,124.85,69.80172788]
[1742282216561,0.063,124.86,124.85,69.80172788]
[1742282217586,0.063,124.86,124.85,61.79212788]
[1742282217877,51.14852614,124.86,124.85,61.79212788]
[1742282219862,59.15742614,124.86,124.85,61.79212788]
[1742282220351,59.29958771,124.86,124.85,61.79212788]
[1742282220680,0.063,124.86,124.85,61.79212788]
[1742282220850,0.063,124.86,124.85,69.80172788]
[1742282221060,0.063,124.86,124.85,88.45137674]
[1742282221576,0.063,124.86,124.85,139.53690288]
[1742282221778,0.063,124.86,124.85,88.45137674]
[1742282222773,52.63042614,124.9,124.85,88.45137674]
[1742282222955,51.08552614,124.89,124.85,88.45137674]
[1742282224377,51.08552614,124.87,124.85,61.79212788]
[1742282224556,51.08552614,124.86,124.85,61.79212788]
[1742282224753,58.34552614,124.87,124.85,61.79212788]
[1742282225081,7.26,124.87,124.85,61.79212788]
[1742282226659,60.71700327,124.9,124.85,61.79212788]
[1742282226857,60.71700327,124.9,124.85,69.80132788]
[1742282227067,28.8049,124.9,124.85,101.71343115]
[1742282227275,60.71700327,124.9,124.85,69.80132788]
[1742282227483,60.71700327,124.9,124.85,101.71343115]
[1742282227985,60.71700327,124.9,124.85,69.80132788]
[1742282228789,60.71700327,124.9,124.85,101.71343115]
[1742282229179,60.78000327,124.9,124.85,101.71343115]
[1742282229382,68.78640327,124.9,124.85,69.80132788]
[1742282229694,60.78000327,124.9,124.85,69.80132788]
[1742282230297,31.91210327,124.88,124.85,69.80132788]
[1742282230469,31.91210327,124.87,124.85,61.79212788]
[1742282230890,31.91210327,124.88,124.85,69.80162788]
[1742282231694,31.91210327,124.88,124.85,61.79212788]
[1742282231998,31.91210327,124.87,124.85,61.79212788]
[1742282233373,39.92060327,124.87,124.85,61.79212788]
[1742282233573,31.91210327,124.86,124.85,61.79212788]
[1742282235398,1.6079,124.9,124.85,61.79212788]
[1742282235602,1.6079,124.9,124.85,69.80152788]
[1742282235603,7.26,124.89,124.85,69.80152788]
[1742282235903,53.52000327,124.9,124.88,31.91210327]
[1742282235904,0.063,124.9,124.88,31.91210327]
[1742282236077,0.063,124.9,124.89,50.56175213]
[1742282236690,0.063,124.9,124.89,58.56875213]
[1742282237299,0.0001,124.9,124.89,8.007]
[1742282238384,0.0001,124.9,124.88,8.0074]
[1742282238584,0.0001,124.9,124.86,9.6435]
[1742282238802,0.0001,124.9,124.86,8.0086]
[1742282240108,31.91210327,124.89,124.85,69.80142788]
[1742282240407,31.91210327,124.87,124.85,61.79212788]
[1742282241189,51.06564964,124.87,124.85,61.79212788]
[1742282241589,51.06564964,124.88,124.85,69.80152788]
[1742282241811,51.06564964,124.88,124.85,61.79212788]
[1742282242182,51.06564964,124.87,124.85,61.79212788]
[1742282243086,51.06564964,124.88,124.85,69.80162788]
[1742282243285,51.06564964,124.88,124.85,61.79212788]
[1742282244205,51.06564964,124.88,124.85,69.80162788]
[1742282244407,51.06564964,124.88,124.85,61.79212788]
[1742282245688,51.06564964,124.87,124.85,61.79212788]
[1742282246710,51.06564964,124.86,124.85,61.79212788]
[1742282247804,59.07454964,124.86,124.85,61.79212788]
[1742282248589,59.07454964,124.86,124.85,61.49212788]
[1742282249395,59.50103435,124.86,124.84,0.03]
[1742282249697,71.06564964,124.84,124.83,0.063]
[1742282250506,8.0089,124.86,124.83,0.063]
[1742282250713,51.06564964,124.86,124.83,0.063]
[1742282250911,0.0001,124.9,124.85,51.06564964]
[1742282251298,0.0001,124.9,124.85,59.07514964]
[1742282251487,51.06574964,124.9,124.85,59.07514964]
[1742282252519,51.06574964,124.9,124.84,59.07564964]
[1742282253221,51.06564964,124.89,124.84,59.07564964]
[1742282254927,51.06564964,124.89,124.84,8.01]
[1742282255101,51.06564964,124.88,124.84,8.01]
[1742282255296,51.06564964,124.89,124.84,8.01]
[1742282255494,51.06564964,124.86,124.83,8.0736]
[1742282255924,51.06564964,124.86,124.83,0.063]
[1742282256728,51.06564964,124.86,124.83,8.0738]
[1742282257228,51.06564964,124.86,124.83,0.063]
[1742282259913,51.06564964,124.85,124.83,0.063]
[1742282260429,58.32564964,124.84,124.83,0.063]
[1742282261560,58.75213435,124.84,124.83,0.063]
[1742282261719,66.76233435,124.84,124.83,0.063]
[1742282263528,72.97363435,124.84,124.83,0.063]
[1742282264106,20.42648471,124.82,124.81,0.03]
[1742282264305,71.49213435,124.82,124.81,0.03]
[1742282264939,79.50363435,124.82,124.81,0.03]
[1742282265236,60.39839918,124.82,124.81,0.03]
[1742282267833,51.96041447,124.82,124.81,0.03]
[1742282268149,31.96041447,124.83,124.81,0.03]
[1742282269240,32.02341447,124.84,124.81,0.03]
[1742282269602,31.96041447,124.83,124.81,0.03]
[1742282269826,0.063,124.84,124.81,0.03]
[1742282269827,52.10257604,124.82,124.81,0.03]
[1742282270030,60.39839918,124.82,124.81,0.03]
[1742282270416,92.35881365,124.82,124.81,0.03]
[1742282271113,60.39839918,124.82,124.81,0.03]
[1742282272006,112.38761365,124.82,124.77,0.063]
[1742282272206,31.96041447,124.78,124.77,0.063]
[1742282273251,51.1424567,124.78,124.77,0.063]
[1742282274644,59.1565567,124.78,124.77,0.063]
[1742282275025,8.43928471,124.8,124.77,0.063]
[1742282275222,51.1424567,124.78,124.77,0.063]
[1742282276250,59.1565567,124.78,124.77,0.063]
[1742282277237,0.28432314,124.8,124.77,0.063]
[1742282277420,51.1424567,124.78,124.77,0.063]
[1742282283156,8.29742314,124.8,124.77,0.063]
[1742282283333,51.1424567,124.78,124.77,0.063]
[1742282284243,59.1565567,124.78,124.77,0.063]
[1742282292878,0.063,124.81,124.77,0.063]
[1742282293380,0.063,124.81,124.78,31.94106971]
[1742282294769,0.063,124.81,124.79,8.0134]
[1742282297177,0.063,124.81,124.79,31.94106971]
[1742282297476,0.063,124.81,124.8,50.59071857]
[1742282297673,0.063,124.81,124.8,188.69071857]
[1742282297873,0.063,124.83,124.8,188.69071857]
[1742282297874,0.063,124.83,124.8,194.83781857]
[1742282298077,0.063,124.83,124.8,162.89674886]
[1742282298264,0.063,124.83,124.8,144.2471]
[1742282298465,32.00406971,124.83,124.8,138.1]
[1742282298672,31.94106971,124.82,124.78,146.1141]
[1742282299268,31.94106971,124.81,124.78,146.1141]
[1742282300467,31.94106971,124.8,124.77,146.1774]
[1742282300671,31.94106971,124.8,124.77,8.0774]
[1742282302374,31.94106971,124.81,124.77,8.0774]
[1742282303068,31.94106971,124.78,124.77,0.063]
[1742282304265,39.95516971,124.78,124.77,0.063]
[1742282306583,40.38165442,124.78,124.77,0.063]
[1742282310292,39.95516971,124.78,124.77,0.063]
[1742282310797,40.38165442,124.78,124.77,0.063]
[1742282311195,31.94106971,124.78,124.77,0.063]
[1742282311806,39.20106971,124.79,124.77,0.063]
[1742282312397,31.94106971,124.8,124.77,0.063]
[1742282312597,39.20106971,124.81,124.77,138.163]
[1742282312782,7.26,124.81,124.77,138.163]
[1742282312980,39.20106971,124.81,124.77,138.163]
[1742282313188,31.94106971,124.78,124.77,138.163]
[1742282315194,31.94106971,124.78,124.77,0.063]
[1742282315399,39.95516971,124.78,124.77,0.063]
[1742282318703,40.38165442,124.78,124.77,0.063]
[1742282321111,47.94455442,124.78,124.77,0.063]
[1742282322593,47.94455442,124.78,124.76,0.063]
[1742282322794,39.20106971,124.77,124.76,0.063]
[1742282323300,39.48539285,124.77,124.76,0.063]
[1742282323486,39.62755442,124.77,124.76,0.063]
[1742282326320,47.64225442,124.77,124.76,0.063]
[1742282331303,8.016,124.75,124.73,0.03]
[1742282331507,31.94106971,124.74,124.73,0.03]
[1742282335323,7.26,124.77,124.73,0.03]
[1742282335512,31.94106971,124.76,124.73,0.03]
[1742282336323,31.94106971,124.76,124.73,8.0473]
[1742282337912,7.26,124.77,124.73,8.0473]
[1742282338220,39.20106971,124.77,124.73,8.0473]
[1742282338815,0.063,124.77,124.74,52.12331857]
[1742282339203,0.063,124.77,124.74,20.18224886]
[1742282340020,0.063,124.77,124.74,52.12331857]
[1742282340210,0.063,124.77,124.76,58.60601857]
[1742282340526,0.063,124.81,124.76,196.70601857]
[1742282341634,0.063,124.81,124.77,31.94106971]
[1742282341812,0.063,124.81,124.76,196.70601857]
[1742282342511,0.063,124.81,124.78,31.94106971]
[1742282342833,0.063,124.81,124.77,37.96126971]
[1742282343522,0.063,124.81,124.78,50.59071857]
[1742282343832,0.063,124.81,124.8,50.59071857]
[1742282344162,0.063,124.83,124.8,188.69071857]
[1742282344329,0.063,124.83,124.82,50.59071857]
[1742282344903,0.063,124.83,124.82,18.64964886]
[1742282345198,0.063,124.84,124.83,18.64964886]
[1742282345400,0.063,124.84,124.83,156.74964886]
[1742282346407,0.063,124.84,124.83,164.76044886]
[1742282348141,0.063,124.84,124.83,146.1108]
[1742282348324,32.00406971,124.84,124.78,138.1]
[1742282348511,31.94106971,124.81,124.79,8.0131]
[1742282349128,31.94106971,124.83,124.79,8.0131]
[1742282349508,32.00406971,124.84,124.8,18.64964886]
[1742282349710,32.00406971,124.84,124.8,156.74964886]
[1742282350427,32.00406971,124.84,124.81,8.0121]
[1742282351221,0.063,124.84,124.81,8.0121]
[1742282351533,32.00406971,124.84,124.81,8.0121]
[1742282353914,32.00406971,124.84,124.8,164.76214886]
[1742282355538,0.063,124.84,124.81,31.94106971]
[1742282355715,0.063,124.84,124.82,18.64964886]
[1742282356743,0.063,124.84,124.83,8.0108]
[1742282368936,0.063,124.84,124.83,196.70151857]
[1742282369150,0.0001,124.84,124.83,212.19500328]
[1742282371032,0.0001,124.84,124.83,211.76851857]
[1742282371351,0.0001,124.84,124.83,146.1108]
[1742282372148,0.0001,124.84,124.83,164.76044886]
[1742282372331,0.0001,124.84,124.83,196.70151857]
[1742282372755,0.0001,124.84,124.83,164.76044886]
[1742282372924,0.0001,124.84,124.83,146.1108]
[1742282373733,0.0001,124.84,124.83,8.0108]
[1742282375137,0.0001,124.84,124.83,8.0408]
[1742282383468,0.0001,124.84,124.83,0.03]
[1742282383665,31.94116971,124.84,124.83,0.03]
[1742282385170,20.43583566,124.84,124.83,0.03]
[1742282386673,0.0001,124.84,124.83,0.03]
[1742282405390,0.0001,124.84,124.83,50.60616881]
[1742282405884,0.0001,124.84,124.83,188.70616881]
[1742282406282,0.0001,124.84,124.83,196.71696881]
[1742282406676,0.0001,124.84,124.83,197.14345352]
[1742282407063,0.0001,124.84,124.83,185.62839907]
[1742282408269,0.0001,124.84,124.83,497.62839907]
[1742282410178,0.0001,124.9,124.87,8.0083]
[1742282410477,0.0001,124.9,124.88,39.06111436]
[1742282411196,0.0001,124.9,124.88,18.64964886]
[1742282411410,20.4114655,124.89,124.86,15.2487]
[1742282411576,0.0001,124.9,124.85,8.0092]
[1742282411577,20.4114655,124.88,124.85,8.0092]
[1742282411893,20.4114655,124.87,124.84,8.0099]
[1742282412188,20.4114655,124.86,124.83,8.0405]
[1742282413067,20.4114655,124.87,124.83,8.0405]
[1742282414495,28.4199655,124.87,124.83,8.0405]
[1742282414786,20.4114655,124.85,124.83,0.03]
[1742282415171,15.2485,124.87,124.83,0.03]
[1742282415366,20.4114655,124.84,124.83,0.03]
[1742282415671,20.4114655,124.85,124.83,0.03]
[1742282416678,19.9114655,124.85,124.83,0.03]
[1742282417088,20.4114655,124.85,124.83,0.03]
[1742282417284,27.6514655,124.87,124.83,0.03]
[1742282418576,7.24,124.87,124.83,8.0408]
[1742282418791,27.6514655,124.87,124.83,8.0408]
[1742282419474,20.4114655,124.86,124.83,8.0408]
[1742282421594,1.637,124.88,124.83,28.4522655]
[1742282421803,22.0484655,124.88,124.84,18.64964886]
[1742282421978,0.0001,124.9,124.84,177.16101436]
[1742282422177,0.0001,124.9,124.87,18.64964886]
[1742282422397,0.0001,124.9,124.88,8.0076]
[1742282422785,0.0001,124.9,124.88,28.4190655]
[1742282423096,0.0001,124.9,124.88,8.0076]
[1742282423296,0.0001,124.9,124.88,138.0999]
[1742282423519,20.4115655,124.9,124.88,138.0999]
[1742282424404,0.0001,124.9,124.88,146.1073]
[1742282426490,0.0001,124.9,124.88,8.0074]
[1742282426726,0.0001,124.9,124.86,26.65854886]
[1742282429398,0.0001,124.9,124.86,47.07001436]
[1742282429603,20.4115655,124.9,124.86,26.65854886]
[1742282432414,20.4115655,124.9,124.86,164.75844886]
[1742282432592,0.0001,124.9,124.86,164.75844886]
[1742282432791,0.0001,124.9,124.86,185.16991436]
[1742282432999,0.0001,124.9,124.86,164.75844886]
[1742282433184,0.0001,124.9,124.86,185.16991436]
[1742282433903,0.0001,124.9,124.89,39.06111436]
[1742282434231,0.0001,124.9,124.89,177.58749907]
[1742282434706,0.0001,124.9,124.89,186.39049907]
[1742282435910,0.0001,124.9,124.89,194.39749907]
[1742282437808,0.063,124.94,124.91,0.42648471]
[1742282438018,0.063,124.94,124.93,28.4158655]
[1742282438315,0.063,124.94,124.93,47.49199907]
[1742282438912,0.063,124.94,124.93,54.73199907]
[1742282439114,0.063,124.94,124.93,33.89404886]
[1742282439320,0.063,124.94,124.93,26.65404886]
[1742282439501,0.063,124.94,124.93,8.0044]
[1742282439821,0.063,124.94,124.91,158.5112655]
[1742282440014,0.063,124.94,124.92,39.06111436]
[1742282440190,0.063,124.94,124.92,18.64964886]
[1742282441013,0.063,124.94,124.92,156.74944886]
[1742282441424,0.063,124.94,124.92,177.16091436]
[1742282441759,0.063,124.94,124.93,20.4114655]
[1742282442492,0.063,124.94,124.93,28.4158655]
[1742282442697,0.063,124.94,124.93,8.0044]
[1742282443018,0.063,124.94,124.92,164.75444886]
[1742282443530,0.063,124.94,124.92,138.0998]
[1742282443695,0.063,124.94,124.92,146.1049]
[1742282447117,0.063,124.94,124.92,26.65474886]
[1742282447605,0.063,124.94,124.93,50.52625024]
[1742282448528,0.063,124.94,124.93,18.64964886]
[1742282449331,0.063,124.94,124.93,8.0044]
[1742282449640,0.063,124.94,124.92,8.0047]
[1742282450907,31.93960138,124.94,124.92,8.0047]
[1742282451132,31.93960138,124.94,124.91,26.65504886]
[1742282451305,31.87660138,124.93,124.9,8.0062]
[1742282453420,0.063,124.94,124.9,8.0062]
[1742282453821,31.93960138,124.94,124.9,8.0062]
[1742282455942,0.063,124.94,124.9,39.88280138]
[1742282456236,31.93960138,124.94,124.9,8.0062]
[1742282457345,31.93960138,124.94,124.9,8.0362]
[1742282460534,0.063,124.94,124.9,8.0362]
[1742282460736,31.93960138,124.94,124.9,8.0362]
[1742282462237,39.94350138,124.94,124.9,8.0362]
[1742282462444,31.87660138,124.91,124.9,0.03]
[1742282462617,38.17200138,124.91,124.9,0.03]
[1742282466249,53.70202452,124.91,124.9,0.03]
[1742282467124,42.24959836,124.91,124.9,0.03]
[1742282468049,0.28432314,124.9,124.85,0.03]
[1742282468356,20.42417522,124.86,124.85,0.03]
[1742282468741,20.42417522,124.87,124.85,0.03]
[1742282469147,31.9183792,124.86,124.85,0.03]
[1742282471070,33.4629792,124.86,124.85,0.03]
[1742282472453,31.9183792,124.86,124.85,0.03]
[1742282472666,7.24,124.87,124.85,0.03]
[1742282473049,31.9183792,124.88,124.85,0.03]
[1742282475566,31.9183792,124.87,124.85,0.03]
[1742282479767,31.9183792,124.86,124.85,0.03]
[1742282485478,15.2472,124.89,124.85,0.03]
[1742282485662,31.9183792,124.87,124.85,0.03]
[1742282486483,31.9183792,124.89,124.85,0.03]
[1742282486978,40.8876792,124.9,124.85,31.9483792]
[1742282487485,40.8876792,124.9,124.87,50.56802806]
[1742282487486,0.063,124.9,124.87,50.56802806]
[1742282487957,31.9813792,124.9,124.86,26.65854886]
[1742282488160,0.063,124.9,124.86,26.65854886]
[1742282488556,0.063,124.9,124.86,58.57692806]
[1742282488763,0.063,124.9,124.86,26.65854886]
[1742282488962,31.9813792,124.9,124.86,26.65854886]
[1742282489670,0.063,124.9,124.86,26.65854886]
[1742282490552,31.9813792,124.9,124.86,26.65854886]